bitfinex-derivatives/quotes_ETHF0:USTF0_20250422
["timestamp","ask_amount","ask_price","bid_price","bid_amount"]
[1745280001692,1.7599,1580.4,1580.3,0.00949878]
[1745280002487,6.7599,1580.4,1580.3,0.00949878]
[1745280003091,6.7599,1580.4,1580.3,8.78e-06]
[1745280003793,8.02537,1580.4,1580.3,8.78e-06]
[1745280004590,3.02537,1580.4,1580.3,8.78e-06]
[1745280004789,15.0642496,1580.4,1580.3,8.78e-06]
[1745280004989,10.0642496,1580.4,1580.3,8.78e-06]
[1745280005191,14.1212496,1580.4,1580.3,8.78e-06]
[1745280005484,3.02537,1580.4,1580.3,8.78e-06]
[1745280005689,1.26547,1580.4,1580.3,8.78e-06]
[1745280006292,7.99227,1580.4,1580.3,8.78e-06]
[1745280006800,1.26571,1580.1,1580.0,1.80960878]
[1745280007100,8.53051,1580.1,1580.0,1.80960878]
[1745280007999,9.36401,1580.1,1580.0,1.80960878]
[1745280008188,17.82737731,1580.1,1580.0,8.13160878]
[1745280009102,19.66707731,1580.1,1580.0,8.13160878]
[1745280012204,11.20371,1580.1,1580.0,8.13160878]
[1745280012701,7.99591,1580.1,1580.0,8.13160878]
[1745280012903,11.20371,1580.1,1580.0,8.13160878]
[1745280015310,11.20371,1580.1,1580.0,6.322]
[1745280015812,11.3169494,1580.1,1580.0,6.322]
[1745280016318,11.31694992,1580.1,1580.0,6.322]
[1745280017607,11.20371,1580.1,1580.0,6.322]
[1745280017914,11.43018314,1580.1,1580.0,6.322]
[1745280019417,11.43018409,1580.1,1580.0,6.322]
[1745280019617,11.5434216,1580.1,1580.0,6.322]
[1745280020818,11.43018409,1580.1,1580.0,6.322]
[1745280021021,11.54342075,1580.1,1580.0,6.322]
[1745280021621,10.70992075,1580.1,1580.0,8.0361]
[1745280021822,10.70992075,1580.1,1580.0,8.9582]
[1745280022527,10.70992078,1580.1,1580.0,8.9582]
[1745280024024,10.59668409,1580.1,1580.0,8.9582]
[1745280024215,10.70992067,1580.1,1580.0,8.9582]
[1745280024421,10.59668409,1580.1,1580.0,8.9582]
[1745280024921,4.69998409,1580.1,1580.0,8.9582]
[1745280025118,8.77198409,1580.1,1580.0,8.9582]
[1745280025624,4.69998409,1580.1,1580.0,8.9582]
[1745280025820,8.77198409,1580.1,1580.0,8.9582]
[1745280026426,4.69998409,1580.1,1580.0,8.9582]
[1745280026630,4.69998409,1580.1,1580.0,13.9582]
[1745280026921,0.22647409,1580.1,1580.0,13.9582]
[1745280027126,0.22647409,1580.1,1580.0,17.166]
[1745280029022,1.49218409,1580.1,1580.0,17.166]
[1745280029222,0.22647409,1580.1,1580.0,17.166]
[1745280030524,1.49218409,1580.1,1580.0,8.9582]
[1745280032925,1.49218409,1580.1,1580.0,12.166]
[1745280033229,0.22647409,1580.1,1580.0,17.166]
[1745280033522,1.49218409,1580.1,1580.0,17.166]
[1745280035426,1.49218409,1580.1,1580.0,12.166]
[1745280039328,1.49218409,1580.1,1580.0,8.9582]
[1745280044631,2.40158409,1580.1,1580.0,8.9582]
[1745280044839,2.40158409,1580.1,1580.0,6.322]
[1745280045319,4.21598409,1580.1,1580.0,6.322]
[1745280047226,3.30658409,1580.1,1580.0,6.322]
[1745280047527,3.30658409,1580.1,1580.0,8.0723]
[1745280050037,4.19708409,1580.1,1580.0,8.0723]
[1745280051336,4.19708409,1580.1,1580.0,6.322]
[1745280060542,1.49218409,1580.1,1580.0,6.322]
[1745280060746,1.49218409,1580.1,1580.0,8.164]
[1745280061531,3.15998409,1580.1,1580.0,8.164]
[1745280062448,6.36778409,1580.1,1580.0,8.164]
[1745280062646,3.15998409,1580.1,1580.0,6.322]
[1745280063347,3.15998409,1580.1,1580.0,8.164]
[1745280064941,8.15998409,1580.1,1580.0,6.322]
[1745280065146,11.36778409,1580.1,1580.0,6.322]
[1745280066949,6.36778409,1580.1,1580.0,6.322]
[1745280069851,6.36778409,1580.1,1580.0,7.2359]
[1745280072353,6.36778409,1580.1,1580.0,6.322]
[1745280074454,6.36778409,1580.1,1580.0,7.1873]
[1745280076051,4.69998409,1580.1,1580.0,7.1873]
[1745280076949,20.19998409,1580.1,1580.0,4.60043]
[1745280077149,1.26619,1579.5,1579.4,1.7072]
[1745280077354,1.26619,1579.5,1579.4,11.7900382]
[1745280077750,3.06349,1579.5,1579.4,11.7900382]
[1745280078256,3.06349,1579.5,1579.4,14.7387382]
[1745280083158,3.06349,1579.5,1579.4,6.322]
[1745280085056,3.17677028,1579.5,1579.4,6.322]
[1745280085259,1.26627,1579.4,1579.3,0.00949878]
[1745280085460,11.31165028,1579.4,1579.3,0.00949878]
[1745280086862,12.2085653,1579.4,1579.3,0.00949878]
[1745280087063,8.6983653,1579.4,1579.3,0.00949878]
[1745280087262,10.3912653,1579.4,1579.3,1.79939878]
[1745280087464,10.27797,1579.4,1579.3,1.79939878]
[1745280087873,10.39126056,1579.4,1579.3,1.79939878]
[1745280088058,10.27797,1579.4,1579.3,1.79939878]
[1745280088666,3.2078,1579.4,1579.3,1.79939878]
[1745280088970,3.2078,1579.4,1579.3,8.06574878]
[1745280089269,8.46336731,1579.5,1579.4,1.26627]
[1745280089470,8.46336731,1579.5,1579.4,3.85357]
[1745280089670,8.46336731,1579.5,1579.4,8.85357]
[1745280090270,8.46336731,1579.5,1579.4,15.17557]
[1745280090868,7.07876731,1579.5,1579.4,15.17557]
[1745280091869,1.26601,1579.8,1579.4,13.9093]
[1745280092066,1.26605,1579.7,1579.6,1.2661]
[1745280092266,1.26605,1579.7,1579.6,2.96]
[1745280092574,1.26605,1579.7,1579.6,7.96]
[1745280093584,1.26605,1579.7,1579.6,1.6939]
[1745280093788,1.26605,1579.7,1579.6,2.96001]
[1745280094080,1.26597,1579.8,1579.6,2.96001]
[1745280094283,1.26597,1579.8,1579.7,2.5846]
[1745280094979,1.2659,1579.9,1579.7,3.85063]
[1745280095186,1.2659,1579.9,1579.8,1.6728]
[1745280095783,0.22647409,1580.1,1579.8,10.7838]
[1745280095988,0.22647409,1580.1,1580.0,1.26579]
[1745280096288,0.22647409,1580.1,1580.0,7.58779]
[1745280096487,0.22647409,1580.1,1580.0,16.01079]
[1745280099590,0.22647409,1580.1,1580.0,11.01079]
[1745280103093,0.22647409,1580.1,1580.0,16.01079]
[1745280103279,0.22647409,1580.1,1579.9,1.89576]
[1745280103479,0.22647409,1580.1,1579.4,4.47405]
[1745280103480,9.26110334,1580.0,1579.4,4.47405]
[1745280103684,4.47393,1579.6,1579.4,2.5766]
[1745280103884,4.47393,1579.6,1579.5,1.6914]
[1745280104085,4.47393,1579.6,1579.5,8.0134]
[1745280104286,4.47393,1579.6,1579.5,6.322]
[1745280104886,6.22093,1579.6,1579.5,6.322]
[1745280105594,4.9548,1579.6,1579.5,6.322]
[1745280105794,6.22091,1579.6,1579.5,6.322]
[1745280106894,7.11721,1579.6,1579.5,6.322]
[1745280107090,12.23048566,1579.6,1579.5,6.322]
[1745280107394,7.11721,1579.6,1579.5,6.322]
[1745280111590,7.11721,1579.6,1579.5,8.0624]
[1745280112297,3.2078,1579.6,1579.5,8.0624]
[1745280112484,6.19292,1579.8,1579.5,9.32859]
[1745280112687,3.2078,1579.8,1579.6,1.7976]
[1745280112989,3.2078,1579.8,1579.7,2.16323]
[1745280113292,3.2078,1579.8,1579.7,11.3382]
[1745280113682,3.2078,1579.8,1579.7,13.1358]
[1745280113887,6.36568871,1580.0,1579.7,13.1358]
[1745280114087,1.26587,1579.9,1579.8,1.7976]
[1745280114297,1.26595,1579.8,1579.7,6.322]
[1745280114593,2.11645,1579.8,1579.7,6.322]
[1745280115491,1.732,1579.8,1579.7,6.322]
[1745280115693,1.732,1579.8,1579.7,8.1148]
[1745280115891,3.4256,1579.8,1579.7,8.1148]
[1745280116995,4.69155,1579.8,1579.7,8.1148]
[1745280118892,3.4256,1579.8,1579.7,8.1148]
[1745280120295,4.58689871,1580.0,1579.8,1.26595]
[1745280120296,4.24123871,1580.0,1579.8,1.26595]
[1745280120489,4.24123871,1580.0,1579.9,3.05017]
[1745280120891,4.24123871,1580.0,1579.9,1.7843]
[1745280121092,0.11323871,1580.0,1579.9,3.05017]
[1745280121285,0.11323871,1580.0,1579.9,8.1063]
[1745280121699,1.37902871,1580.0,1579.9,8.1063]
[1745280121896,3.18142871,1580.0,1579.9,8.1063]
[1745280122196,1.91563871,1580.0,1579.9,8.1063]
[1745280123096,5.12343871,1580.0,1579.9,8.1063]
[1745280123594,5.12343871,1580.0,1579.9,9.37217]
[1745280123783,5.12343871,1580.0,1579.9,8.1063]
[1745280124190,3.32103871,1580.0,1579.9,9.37217]
[1745280124896,0.11323871,1580.0,1579.9,13.49017]
[1745280125797,9.58682871,1580.0,1579.9,6.30709999]
[1745280126000,12.24057933,1580.0,1579.9,6.30709999]
[1745280126300,12.24057933,1580.0,1579.3,3.21729878]
[1745280126301,1.26602,1579.8,1579.5,1.26618]
[1745280126499,4.47382,1579.8,1579.6,1.7667]
[1745280126695,1.6717,1579.7,1579.6,1.7667]
[1745280127093,3.32103871,1580.0,1579.7,1.26597]
[1745280127293,3.32103871,1580.0,1579.8,2.6492]
[1745280127498,3.32103871,1580.0,1579.9,1.7667]
[1745280127796,0.11323871,1580.0,1579.9,1.7667]
[1745280127998,0.11323871,1580.0,1579.9,3.03257]
[1745280128198,0.11323871,1580.0,1579.9,9.35457]
[1745280129393,0.11323871,1580.0,1579.9,12.56237]
[1745280129897,0.11323871,1580.0,1579.9,17.56237]
[1745280131005,0.22647409,1580.1,1580.0,1.26579]
[1745280131200,0.00949878,1580.2,1580.1,1.26571]
[1745280131400,0.00949878,1580.2,1580.1,9.72061]
[1745280131601,0.00949878,1580.2,1580.1,11.55111]
[1745280131796,0.00949878,1580.2,1580.1,8.34331]
[1745280134100,3.2078,1580.4,1580.3,1.26555]
[1745280134804,3.2078,1580.7,1580.2,4.88275]
[1745280134998,16.82474914,1581.0,1580.5,6.37125]
[1745280135304,1.7727,1580.9,1580.7,1.26518]
[1745280135603,1.78219878,1580.9,1580.8,1.26515]
[1745280136697,1.78219878,1580.9,1580.8,2.98385]
[1745280137408,0.00949878,1580.9,1580.8,2.98385]
[1745280138407,0.00949878,1580.9,1580.8,7.33785]
[1745280144003,1.27461878,1580.9,1580.7,9.5298]
[1745280144204,1.27461878,1580.9,1580.7,5.0218]
[1745280144405,1.27461878,1580.9,1580.8,1.814]
[1745280146010,0.00949878,1580.9,1580.8,3.07915]
[1745280146700,0.00949878,1580.9,1580.8,1.814]
[1745280146896,1.83829878,1580.9,1580.8,1.814]
[1745280148910,1.83829878,1580.9,1580.8,3.07915]
[1745280149311,1.83829878,1580.9,1580.8,1.814]
[1745280150112,1.83829878,1580.9,1580.8,3.07915]
[1745280150414,0.00949878,1580.9,1580.8,3.07915]
[1745280150708,1.27459878,1580.9,1580.7,9.5298]
[1745280151010,1.8091,1580.8,1580.7,10.79502]
[1745280151312,1.8091,1580.8,1580.7,12.50022]
[1745280153614,0.00949878,1580.9,1580.8,1.26515]
[1745280153816,0.00949878,1580.9,1580.8,3.90135]
[1745280154412,0.00949878,1580.9,1580.8,7.39095]
[1745280154608,1.84869878,1580.9,1580.8,7.39095]
[1745280155109,1.26515,1580.8,1580.7,9.5298]
[1745280155308,3.11382878,1580.9,1580.7,4.47299]
[1745280155609,3.11382878,1580.9,1580.7,4.47297]
[1745280155913,1.84869878,1580.9,1580.7,4.47297]
[1745280156312,1.84869878,1580.9,1580.7,10.79497]
[1745280156514,1.84869878,1580.9,1580.8,1.26515]
[1745280158013,1.84869878,1580.9,1580.7,8.80297]
[1745280158701,1.84869878,1580.9,1580.8,1.26515]
[1745280159106,1.84869878,1580.9,1580.7,8.80297]
[1745280159913,1.84869878,1580.9,1580.8,1.26515]
[1745280160815,1.84869878,1580.9,1580.7,7.5378]
[1745280161015,1.84869878,1580.9,1580.8,1.26515]
[1745280161218,1.84869878,1580.9,1580.8,2.98315]
[1745280161915,1.84869878,1580.9,1580.8,1.718]
[1745280163510,1.84869878,1580.9,1580.7,7.5378]
[1745280163511,3.11378878,1580.9,1580.7,4.47301]
[1745280163717,3.11378878,1580.9,1580.7,3.2078]
[1745280164016,0.9151,1580.8,1580.7,3.2078]
[1745280164312,2.7333,1580.8,1580.7,5.0303]
[1745280164521,2.7333,1580.8,1580.7,6.29553]
[1745280164709,2.7333,1580.8,1580.7,3.08773]
[1745280165017,0.9151,1580.8,1580.7,3.08773]
[1745280165716,0.00949878,1580.9,1580.8,1.26515]
[1745280165912,0.00949878,1580.9,1580.7,3.08767]
[1745280166312,0.00949878,1580.9,1580.8,1.8225]
[1745280166916,1.27456878,1580.9,1580.8,1.8225]
[1745280167214,3.09276878,1580.9,1580.8,1.8225]
[1745280168415,1.82769878,1580.9,1580.8,1.8225]
[1745280169015,3.09276878,1580.9,1580.8,1.8225]
[1745280169212,0.00949878,1580.9,1580.8,1.8225]
[1745280169516,1.27456878,1580.9,1580.8,1.8225]
[1745280169717,3.01846878,1580.9,1580.8,1.8225]
[1745280172018,1.26528,1580.7,1580.5,3.2078]
[1745280172214,0.9171,1580.6,1580.5,3.2078]
[1745280172516,4.87611,1580.6,1580.5,3.2078]
[1745280173016,9.87611,1580.6,1580.5,3.2078]
[1745280173215,1.26571,1580.1,1580.0,8.355253]
[1745280173814,4.82911,1580.1,1580.0,8.355253]
[1745280175220,3.5634,1580.1,1580.0,8.355253]
[1745280175418,3.5634,1580.1,1580.0,10.194253]
[1745280176118,3.5634,1580.1,1580.0,16.516253]
[1745280176119,2.6669,1580.1,1580.0,16.516253]
[1745280176320,3.93261,1580.1,1580.0,8.161]
[1745280176616,3.93261,1580.1,1580.0,6.322]
[1745280176819,8.93261,1580.1,1580.0,6.322]
[1745280177009,3.93261,1580.1,1580.0,6.322]
[1745280177221,1.26579,1580.0,1579.9,0.00949878]
[1745280177420,3.96689,1580.0,1579.9,0.00949878]
[1745280178225,3.96689,1580.0,1579.9,6.33149878]
[1745280179128,3.96689,1580.0,1579.9,0.00949878]
[1745280181132,3.96689,1580.0,1579.9,6.33149878]
[1745280185124,3.1647,1579.9,1579.2,3.2078]
[1745280185323,1.26635,1579.3,1579.2,5.0516]
[1745280185526,1.26635,1579.3,1579.2,1.8438]
[1745280185727,1.26643,1579.2,1579.1,0.8745]
[1745280186028,3.5136,1579.4,1579.0,3.2078]
[1745280186029,1.26651,1579.1,1579.0,3.2078]
[1745280186327,9.88712,1579.4,1579.0,3.2078]
[1745280186328,1.2665,1579.2,1579.0,11.308]
[1745280186629,1.26651,1579.1,1579.0,11.308]
[1745280186833,1.2665,1579.2,1579.0,11.308]
[1745280187027,3.06851878,1579.3,1579.0,11.308]
[1745280187223,1.80209878,1579.3,1579.1,1.7782]
[1745280187426,3.06851878,1579.3,1579.1,1.7782]
[1745280188335,1.26643,1579.2,1579.1,1.7782]
[1745280190945,1.80209878,1579.3,1579.1,1.7782]
[1745280191539,3.06850878,1579.3,1579.1,1.7782]
[1745280191841,1.27585878,1579.3,1579.1,1.7782]
[1745280192031,1.27585878,1579.3,1579.2,0.8909]
[1745280193038,1.27585878,1579.3,1579.2,2.5599]
[1745280193238,1.27585878,1579.3,1579.2,8.8819]
[1745280195735,3.04195878,1579.3,1579.2,8.8819]
[1745280198034,3.04195878,1579.3,1579.2,6.322]
[1745280199641,1.27585878,1579.3,1579.2,6.322]
[1745280200038,2.98015878,1579.3,1579.2,6.322]
[1745280201144,0.00949878,1579.3,1579.2,6.322]
[1745280201347,0.00949878,1579.3,1579.2,8.1152]
[1745280202449,0.00949878,1579.3,1579.2,9.38163]
[1745280203243,0.00949878,1579.3,1579.2,12.58943]
[1745280203441,8.4024,1579.6,1579.2,16.323]
[1745280203442,3.2078,1579.6,1579.2,16.323]
[1745280203648,3.2078,1579.6,1579.4,1.26625]
[1745280203950,1.26601,1579.8,1579.5,3.90899]
[1745280204147,1.26601,1579.8,1579.6,1.7489]
[1745280204647,3.21729878,1579.9,1579.7,0.846]
[1745280204838,0.00949878,1579.9,1579.8,1.7489]
[1745280205042,1.27536878,1579.9,1579.8,1.7489]
[1745280205548,4.48316878,1579.9,1579.8,1.7489]
[1745280210358,1.26595,1579.8,1579.7,6.33149878]
[1745280210559,2.95955,1579.8,1579.7,6.33149878]
[1745280212260,3.82545,1579.8,1579.7,0.00949878]
[1745280213060,3.82545,1579.8,1579.7,6.33149878]
[1745280214761,1.27542878,1579.9,1579.7,6.33149878]
[1745280214951,1.27542878,1579.9,1579.8,1.7834]
[1745280215655,1.27536878,1579.9,1579.8,1.7834]
[1745280215856,0.00949878,1579.9,1579.8,1.7834]
[1745280216250,1.27536878,1579.9,1579.8,1.7834]
[1745280218061,0.00949878,1579.9,1579.8,1.7834]
[1745280218457,1.27536878,1579.9,1579.8,1.7834]
[1745280219759,0.00949878,1579.9,1579.8,3.04935]
[1745280220360,0.00949878,1579.9,1579.8,1.7834]
[1745280221255,1.27536878,1579.9,1579.8,1.7834]
[1745280221561,1.26595,1579.8,1579.7,7.24199878]
[1745280221765,3.96845,1579.8,1579.7,7.24199878]
[1745280223959,2.7025,1579.8,1579.7,7.24199878]
[1745280224258,1.27542878,1579.9,1579.7,7.24199878]
[1745280224557,1.27542878,1579.9,1579.8,1.8259]
[1745280226265,3.02942878,1579.9,1579.8,1.8259]
[1745280229767,1.26595,1579.8,1579.7,7.24199878]
[1745280229968,3.06625,1579.8,1579.7,7.24199878]
[1745280230170,3.06625,1579.8,1579.7,5.93974571]
[1745280232066,3.06625,1579.8,1579.7,7.77254571]
[1745280232668,3.06625,1579.8,1579.7,5.93974571]
[1745280233062,7.33925,1579.8,1579.7,5.93974571]
[1745280233363,1.26603,1579.7,1579.6,0.00949878]
[1745280233671,4.01973,1579.7,1579.6,0.00949878]
[1745280234672,8.06113,1579.7,1579.6,0.00949878]
[1745280235171,8.17178345,1579.7,1579.6,0.00949878]
[1745280235465,8.17178703,1579.7,1579.6,0.00949878]
[1745280236065,8.17178703,1579.7,1579.6,8.78e-06]
[1745280237671,13.17179219,1579.7,1579.6,8.78e-06]
[1745280238976,1.26659,1579.0,1578.9,3.2078]
[1745280239163,1.26659,1579.0,1578.9,12.10643972]
[1745280239469,1.26659,1579.0,1578.9,57.90643972]
[1745280241171,1.26659,1579.0,1578.9,52.90643972]
[1745280242165,1.26659,1579.0,1578.9,8.9079]
[1745280245473,1.26659,1579.0,1578.9,8.0603]
[1745280245861,2.95029,1579.0,1578.9,8.0603]
[1745280248577,2.95029,1579.0,1578.9,6.322]
[1745280253884,7.95029,1579.0,1578.9,6.322]
[1745280254076,8.06099083,1579.0,1578.9,6.322]
[1745280254282,8.06099083,1579.0,1578.8,0.00633252]
[1745280254283,1.26667,1578.9,1578.8,0.00633252]
[1745280254478,8.04287083,1578.9,1578.8,2.52e-06]
[1745280254785,13.04287083,1578.9,1578.8,2.52e-06]
[1745280255084,19.36487083,1578.9,1578.8,2.52e-06]
[1745280255686,14.36489211,1578.9,1578.8,2.52e-06]
[1745280256282,8.04289211,1578.9,1578.8,2.52e-06]
[1745280257392,8.04288562,1578.9,1578.8,2.52e-06]
[1745280257687,8.04288562,1578.9,1578.8,0.91910252]
[1745280257885,5.34077,1578.9,1578.8,0.91910252]
[1745280259388,4.47447,1578.9,1578.8,0.91910252]
[1745280260586,4.47447,1578.9,1578.8,2.60200252]
[1745280260786,1.26667,1578.9,1578.8,2.60200252]
[1745280263286,1.7515,1579.0,1578.8,2.60200252]
[1745280263287,3.01814,1579.0,1578.8,2.60200252]
[1745280263489,1.26664,1579.0,1578.9,2.6463]
[1745280264087,5.50906878,1579.1,1578.9,2.6463]
[1745280264293,1.26659,1579.0,1578.9,0.8986]
[1745280264490,5.50906878,1579.1,1578.9,0.8986]
[1745280264790,1.26659,1579.0,1578.9,0.8986]
[1745280264994,4.24249878,1579.1,1578.9,0.8986]
[1745280265291,0.00949878,1579.1,1578.9,8.48727]
[1745280265493,1.27602878,1579.1,1578.9,7.2206]
[1745280265689,0.00949878,1579.1,1578.9,7.2206]
[1745280265889,1.27607878,1579.1,1578.9,7.2206]
[1745280266395,0.00949878,1579.1,1578.9,7.2206]
[1745280267198,0.00949878,1579.1,1578.9,11.69507]
[1745280267494,1.27601878,1579.1,1578.9,7.2206]
[1745280269195,1.27601878,1579.1,1578.9,10.4284]
[1745280269890,1.27601878,1579.1,1578.9,11.69507]
[1745280270291,1.27601878,1579.1,1578.9,10.4284]
[1745280271288,0.00949878,1579.1,1578.9,52.49505]
[1745280273391,1.27604878,1579.1,1578.9,51.2284]
[1745280273697,1.26659,1579.0,1578.9,6.322]
[1745280273997,9.11848746,1579.0,1578.9,6.322]
[1745280274187,1.26667,1578.9,1578.8,2.52e-06]
[1745280274392,6.37776746,1578.9,1578.8,2.52e-06]
[1745280274599,18.29296105,1578.9,1578.8,2.52e-06]
[1745280275505,11.37779259,1578.9,1578.8,2.52e-06]
[1745280275699,6.37779259,1578.9,1578.8,2.52e-06]
[1745280275902,10.61179259,1578.9,1578.8,2.52e-06]
[1745280276103,10.61178427,1578.9,1578.8,2.52e-06]
[1745280276404,10.61178414,1578.9,1578.8,2.52e-06]
[1745280284017,10.61178866,1578.9,1578.8,2.52e-06]
[1745280285020,15.61178866,1578.9,1578.8,2.52e-06]
[1745280286123,21.93378866,1578.9,1578.8,2.52e-06]
[1745280287017,21.82307,1578.9,1578.8,2.52e-06]
[1745280287223,15.61179534,1578.9,1578.8,2.52e-06]
[1745280287724,26.12744338,1578.9,1578.8,2.52e-06]
[1745280288021,21.12744338,1578.9,1578.8,2.52e-06]
[1745280288221,32.44944338,1578.9,1578.8,2.52e-06]
[1745280288422,39.14496669,1578.9,1578.8,2.52e-06]
[1745280290424,27.44944338,1578.9,1578.8,2.52e-06]
[1745280291126,21.12744338,1578.9,1578.8,2.52e-06]
[1745280291721,17.80891804,1578.9,1578.8,2.52e-06]
[1745280291930,21.12744058,1578.9,1578.8,2.52e-06]
[1745280293232,10.61179254,1578.9,1578.8,2.52e-06]
[1745280294323,16.93379254,1578.9,1578.8,2.52e-06]
[1745280294929,16.93379384,1578.9,1578.8,2.52e-06]
[1745280295728,16.93379386,1578.9,1578.8,2.52e-06]
[1745280297834,16.93379462,1578.9,1578.8,2.52e-06]
[1745280298132,16.9337948,1578.9,1578.8,2.52e-06]
[1745280298733,23.93764144,1578.9,1578.8,2.52e-06]
[1745280299731,34.45328948,1578.9,1578.8,2.52e-06]
[1745280300034,1.26692,1578.6,1578.5,1.75750252]
[1745280300230,5.50892,1578.6,1578.5,1.75750252]
[1745280302427,5.50892,1578.6,1578.4,0.8848]
[1745280302632,6.28783889,1578.5,1578.4,0.8848]
[1745280304529,4.58553889,1578.5,1578.4,0.8848]
[1745280305026,4.4748,1578.5,1578.4,0.8848]
[1745280305226,4.5855411,1578.5,1578.4,0.8848]
[1745280305435,10.5650411,1578.5,1578.4,0.8848]
[1745280305630,10.5650414,1578.5,1578.4,2.6756]
[1745280305831,10.6757828,1578.5,1578.4,2.6756]
[1745280307335,1.26708,1578.4,1578.3,0.8397]
[1745280307535,3.95588,1578.4,1578.3,0.8397]
[1745280308035,4.06662727,1578.4,1578.3,0.8397]
[1745280308732,4.98114008,1578.4,1578.3,0.8397]
[1745280309139,11.30314008,1578.4,1578.3,0.8397]
[1745280309330,1.26742,1578.0,1577.8,3.2078]
[1745280309637,1.25252,1578.0,1577.9,0.9057]
[1745280310030,1.25252,1578.0,1577.9,5.9057]
[1745280310229,1.25252,1578.0,1577.9,12.2277]
[1745280310936,1.25252,1578.0,1577.9,13.9838]
[1745280311136,1.25252,1578.0,1577.9,7.6618]
[1745280312227,1.25252,1578.0,1577.9,13.9838]
[1745280313339,1.25252,1578.0,1577.9,2.6618]
[1745280315136,1.25252,1578.0,1577.9,8.9838]
[1745280324139,1.25252,1578.0,1577.9,2.6618]
[1745280325338,1.25252,1578.0,1577.9,8.9838]
[1745280325947,3.00232,1578.0,1577.9,8.9838]
[1745280330247,3.00232,1578.0,1577.9,0.9057]
[1745280332545,1.25252,1578.0,1577.9,0.9057]
[1745280333146,1.25252,1578.0,1577.9,7.2277]
[1745280333857,4.48465878,1578.1,1577.9,7.2277]
[1745280334152,4.48465878,1578.1,1578.0,2.6243]
[1745280335050,1.2674,1578.0,1577.9,7.2277]
[1745280335253,3.0933,1578.0,1577.9,0.9057]
[1745280335662,3.9743,1578.0,1577.9,0.9057]
[1745280336150,3.9743,1578.0,1577.9,7.2277]
[1745280341055,4.8439,1578.0,1577.9,7.2277]
[1745280341257,4.8439,1578.0,1577.9,0.9057]
[1745280341456,1.26755,1577.9,1577.6,5.42067]
[1745280341654,1.6865,1577.8,1577.7,2.5667]
[1745280341847,2.95406,1577.8,1577.7,2.5667]
[1745280342261,2.95406,1577.8,1577.7,8.8887]
[1745280347964,1.6865,1577.8,1577.7,10.15634]
[1745280348265,2.14846,1578.0,1577.7,8.8887]
[1745280348464,1.26748,1577.9,1577.8,2.7083]
[1745280349366,2.98858,1577.9,1577.8,2.7083]
[1745280349667,1.7211,1577.9,1577.8,3.97586]
[1745280353267,1.7211,1577.9,1577.8,2.7083]
[1745280353767,2.98858,1577.9,1577.8,2.7083]
[1745280353957,1.26756,1577.8,1577.7,10.4172]
[1745280354161,1.7579,1577.8,1577.7,13.52154]
[1745280354967,3.02546,1577.8,1577.7,13.52154]
[1745280356566,1.7579,1577.8,1577.7,13.52154]
[1745280356972,0.881,1578.0,1577.7,12.2539]
[1745280357162,1.7509,1578.0,1577.9,1.26748]
[1745280357367,3.0183,1578.0,1577.9,1.26748]
[1745280357564,3.0183,1578.0,1577.9,2.18518]
[1745280357974,1.7509,1578.0,1577.9,2.18518]
[1745280358271,11.79247682,1578.1,1577.9,11.71498]
[1745280358571,11.79247682,1578.1,1578.0,3.8799]
[1745280359167,11.79247682,1578.1,1578.0,8.9345]
[1745280359773,11.79247682,1578.1,1578.0,10.2019]
[1745280360275,10.52514682,1578.1,1578.0,10.2019]
[1745280360579,10.52514682,1578.1,1578.0,8.9345]
[1745280360871,12.20644682,1578.1,1578.0,10.2019]
[1745280361172,1.69079878,1578.1,1578.0,10.2019]
[1745280361371,1.2673,1578.2,1578.0,10.2019]
[1745280361372,0.8998,1578.3,1578.2,1.26724]
[1745280361573,2.5811,1578.3,1578.2,1.26724]
[1745280362070,11.78273804,1578.4,1578.2,8.0205]
[1745280362259,10.51564804,1578.4,1578.2,13.0664]
[1745280362575,10.51564804,1578.4,1578.3,3.90086]
[1745280363571,12.24374804,1578.4,1578.3,2.6337]
[1745280363776,12.24374804,1578.4,1578.3,3.90086]
[1745280364172,12.24374804,1578.4,1578.3,2.6337]
[1745280364373,1.7281,1578.4,1578.3,2.6337]
[1745280364773,1.7281,1578.4,1578.3,3.90086]
[1745280365969,1.7281,1578.4,1578.3,2.6337]
[1745280366966,1.7281,1578.4,1578.3,0.8491]
[1745280367167,1.7281,1578.4,1578.3,2.11626]
[1745280367674,1.7281,1578.4,1578.3,0.8491]
[1745280367976,2.99523,1578.4,1578.2,10.475]
[1745280368175,1.7822,1578.3,1578.2,4.153]
[1745280368379,3.4772,1578.3,1578.2,4.153]
[1745280368869,3.4772,1578.3,1578.2,5.42024]
[1745280369074,3.4772,1578.3,1578.2,11.74224]
[1745280369462,2.5834,1578.3,1578.2,11.74224]
[1745280369666,2.5834,1578.3,1578.2,12.3092]
[1745280370067,2.5834,1578.3,1578.2,10.475]
[1745280370673,3.85056,1578.3,1578.2,10.475]
[1745280372073,3.85056,1578.3,1578.2,6.322]
[1745280378378,0.12024018,1578.5,1578.2,11.322]
[1745280378681,0.12024018,1578.5,1578.4,1.26708]
[1745280379176,0.66460419,1578.5,1578.4,10.28308]
[1745280379573,0.66460419,1578.5,1578.4,15.28308]
[1745280380385,10.51564804,1578.8,1578.7,1.26683]
[1745280380581,10.51564804,1578.8,1578.7,8.59363]
[1745280380781,10.51564804,1578.8,1578.7,49.39363]
[1745280380980,2.60575101,1578.8,1578.7,54.39363]
[1745280381188,2.60575101,1578.8,1578.7,63.27223]
[1745280381486,2.96845,1579.1,1579.0,1.26659]
[1745280381686,2.95918972,1579.1,1579.0,1.26659]
[1745280382183,2.95918972,1579.1,1579.0,10.21739]
[1745280382788,1.7019,1579.1,1579.0,10.21739]
[1745280383287,1.7019,1579.1,1579.0,8.9508]
[1745280383488,1.7019,1579.1,1579.0,10.21739]
[1745280386285,1.7019,1579.1,1579.0,8.51249]
[1745280388990,1.7019,1579.1,1579.0,12.63149]
[1745280389993,1.7019,1579.1,1579.0,14.41109]
[1745280391293,2.96841,1579.1,1579.0,11.3649]